fUST/lending_fUST_20260601
["ID","MTS","AMOUNT","RATE_DAILY","PERIOD"]
[423697733,1780317046000,-500.0,0.00016016,2]
[423697745,1780317046000,-305.91960338,0.00016016,2]
[423697747,1780317046000,-500.0,0.00016016,2]
[423697743,1780317046000,-500.0,0.00016016,2]
[423697751,1780317046000,-500.0,0.00016016,2]
[423697729,1780317046000,-500.0,0.00016016,2]
[423697737,1780317046000,-500.0,0.00016016,2]
[423697741,1780317046000,-500.0,0.00016016,2]
[423697749,1780317046000,-500.0,0.00016016,2]
[423697719,1780317046000,-156.33770038,0.00016016,2]
[423697712,1780317046000,-500.0,0.00016016,2]
[423697718,1780317046000,-500.0,0.00016016,2]
[423697714,1780317046000,-500.0,0.00016016,2]
[423697716,1780317046000,-500.0,0.00016016,2]
[423697735,1780317046000,-500.0,0.00016016,2]
[423697739,1780317046000,-500.0,0.00016016,2]
[423697764,1780317047000,-500.0,0.00016016,2]
[423697758,1780317047000,-207.66986274,0.00016016,2]
[423697754,1780317047000,-500.0,0.00016016,2]
[423697756,1780317047000,-500.0,0.00016016,2]
[423697760,1780317047000,-500.0,0.00016016,2]
[423697762,1780317047000,-312.45646364,0.00016016,2]
[423697772,1780317047000,-9102.87610807,0.00016018,2]
[423697752,1780317047000,-500.0,0.00016016,2]
[423697768,1780317047000,-278.52103277,0.00016016,2]
[423697776,1780317047000,-172.024289,0.00016133,2]
[423697774,1780317047000,-238.72840418,0.00016033,2]
[423697781,1780317047000,-40026.17572312,0.00016581,2]
[423697783,1780317047000,-675.7404708,0.00016581,2]
[423697766,1780317047000,-500.0,0.00016016,2]
[423697778,1780317047000,-3421.15613199,0.00016487,2]
[423697770,1780317047000,-2469.99604379,0.00016017,2]
[423697780,1780317047000,-156.092,0.00016581,2]
[423698270,1780317149000,-1077.95196829,0.00015757,2]
[423698272,1780317165000,-845.57304924,0.00015916,2]
[423698273,1780317166000,153.0,0.0002,120]
[423698274,1780317166000,153.0,0.00021,120]
[423698280,1780317404000,151.0,0.0002,120]
[423698281,1780317405000,151.0,0.000209,120]
[423698282,1780317407000,151.0,0.000219,120]
[423702849,1780318232000,-1204.23062129,0.00014165,2]
[423702961,1780318239000,-300.0,0.00015406,2]
[423702959,1780318239000,-845.57304924,0.00015157,2]
[423702957,1780318239000,-326.5701808,0.00015155,2]
[423702954,1780318239000,-39.85734483,0.00014308,2]
[423702951,1780318239000,-157.19265517,0.00014308,2]
[423702955,1780318239000,-1000.0,0.00015055,2]
[423702963,1780318239000,-26.77044629,0.00015406,2]
[423702950,1780318239000,-3795.76937871,0.00014165,2]
[423703594,1780318244000,-364.60893119,0.0001617,2]
[423703590,1780318244000,-500.0,0.0001595,2]
[423703603,1780318244000,-302.16498139,0.00016317,2]
[423703605,1780318244000,-500.0,0.00016317,2]
[423703607,1780318244000,-500.0,0.00016317,2]
[423703619,1780318244000,-509.78029153,0.00016317,2]
[423703608,1780318244000,-616.92866392,0.00016317,2]
[423703621,1780318244000,-500.0,0.00016317,2]
[423703626,1780318244000,-500.0,0.00016317,2]
[423703624,1780318244000,-155.56057811,0.00016317,2]
[423703610,1780318244000,-506.89611728,0.00016317,2]
[423703623,1780318244000,-500.0,0.00016317,2]
[423703617,1780318244000,-500.0,0.00016317,2]
[423703616,1780318244000,-500.0,0.00016317,2]
[423703614,1780318244000,-346.56493221,0.00016317,2]
[423703612,1780318244000,-500.0,0.00016317,2]
[423703601,1780318244000,-293.59556646,0.00016218,2]
[423703565,1780318244000,-959.60216315,0.00015406,2]
[423703592,1780318244000,-303.17650763,0.0001617,2]
[423703630,1780318244000,-500.0,0.00016317,2]
[423703563,1780318244000,-273.22955371,0.00015406,2]
[423703574,1780318244000,-552.39883095,0.00015407,2]
[423703577,1780318244000,-2159.53026325,0.00015411,2]
[423703576,1780318244000,-300.0,0.0001541,2]
[423703581,1780318244000,-182.3044656,0.00015411,2]
[423703579,1780318244000,-151.58825382,0.00015411,2]
[423703597,1780318244000,-385.87900629,0.0001617,2]
[423703569,1780318244000,-300.0,0.00015406,2]
[423703571,1780318244000,-567.60116905,0.00015407,2]
[423703583,1780318244000,-179.15243513,0.00015411,2]
[423703588,1780318244000,-300.0,0.00015713,2]
[423703586,1780318244000,-179.40717773,0.00015704,2]
[423703585,1780318244000,-192.93950315,0.00015411,2]
[423703596,1780318244000,-358.30487026,0.0001617,2]
[423703599,1780318244000,-201.52335523,0.0001617,2]
[423703567,1780318244000,-240.39783685,0.00015406,2]
[423703628,1780318244000,-500.0,0.00016317,2]
[423703663,1780318244000,-500.0,0.00016317,2]
[423703645,1780318244000,-500.0,0.00016317,2]
[423703665,1780318244000,-500.0,0.00016317,2]
[423703662,1780318244000,-500.0,0.00016317,2]
[423703667,1780318244000,-500.0,0.00016317,2]
[423703680,1780318244000,-511.16037238,0.00016319,2]
[423703682,1780318244000,-500.0,0.00016319,2]
[423703693,1780318244000,-500.0,0.00016478,2]
[423703687,1780318244000,-200.0,0.00016438,2]
[423703695,1780318244000,-624.23485909,0.00016486,2]
[423703684,1780318244000,-216.7086201,0.00016319,2]
[423703691,1780318244000,-500.0,0.00016478,2]
[423703685,1780318244000,-3043.3812159,0.0001632,2]
[423703689,1780318244000,-537.6845,0.00016457,2]
[423703700,1780318244000,-14535.23091086,0.00016576,2]
[423703697,1780318244000,-152.0,0.00016514,2]
[423703698,1780318244000,-152.0,0.00016547,2]
[423703678,1780318244000,-500.0,0.00016319,2]
[423703703,1780318244000,-1720.39792559,0.00016576,2]
[423703660,1780318244000,-500.0,0.00016317,2]
[423703671,1780318244000,-500.0,0.00016318,2]
[423703650,1780318244000,-500.0,0.00016317,2]
[423703652,1780318244000,-500.0,0.00016317,2]
[423703649,1780318244000,-500.0,0.00016317,2]
[423703636,1780318244000,-500.0,0.00016317,2]
[423703638,1780318244000,-500.0,0.00016317,2]
[423703643,1780318244000,-500.0,0.00016317,2]
[423703654,1780318244000,-500.0,0.00016317,2]
[423703640,1780318244000,-500.0,0.00016317,2]
[423703634,1780318244000,-500.0,0.00016317,2]
[423703642,1780318244000,-500.0,0.00016317,2]
[423703656,1780318244000,-500.0,0.00016317,2]
[423703658,1780318244000,-500.0,0.00016317,2]
[423703669,1780318244000,-510.34045024,0.00016318,2]
[423703673,1780318244000,-509.03777903,0.00016318,2]
[423703674,1780318244000,-500.0,0.00016318,2]
[423703676,1780318244000,-221.22400545,0.00016318,2]
[423703632,1780318244000,-500.0,0.00016317,2]
[423703907,1780318247000,-1932.4316706,0.00016576,2]
[423703894,1780318247000,-28101.46091168,0.00016576,2]
[423705396,1780318554000,-300.0,0.00015263,2]
[423705397,1780318557000,-176.65683306,0.00015263,2]
[423705409,1780318950000,-164.80993619,0.00014244,2]
[423705412,1780319033000,-270.21574425,0.00014392,2]
[423705438,1780319432000,-494.18575498,0.00013822,2]
[423705445,1780319432000,-4189.90856859,0.00013822,2]
[423705448,1780319432000,-200.0,0.00013962,2]
[423705440,1780319432000,-315.90567643,0.00013822,2]
[423705452,1780319432000,-161.3615303,0.00014292,2]
[423705450,1780319432000,-285.24,0.00013962,7]
[423705454,1780319432000,-718.34438343,0.00014477,7]
[423705455,1780319432000,-1172.52399493,0.00014477,7]
[423705446,1780319432000,-482.59626955,0.00013949,7]
[423705481,1780319438000,-11.44904366,0.00014477,7]
[423706264,1780319446000,-500.0,0.00016146,2]
[423706266,1780319446000,-500.0,0.00016146,2]
[423706258,1780319446000,-467.01891298,0.00016089,7]
[423706261,1780319446000,-500.0,0.00016146,2]
[423706260,1780319446000,-317.63075788,0.00016146,2]
[423706262,1780319446000,-500.0,0.00016146,2]
[423706263,1780319446000,-500.0,0.00016146,2]
[423706256,1780319446000,-181.90590458,0.00015417,2]
[423706259,1780319446000,-255.48715865,0.00016134,2]
[423706250,1780319446000,-168.64274706,0.00015149,2]
[423706253,1780319446000,-976.42822437,0.00015416,2]
[423706257,1780319446000,-467.01891298,0.00015417,7]
[423706254,1780319446000,-300.0,0.00015416,2]
[423706252,1780319446000,-903.0,0.00015415,2]
[423706251,1780319446000,-467.01891298,0.00015272,7]
[423706248,1780319446000,-28.06765617,0.00014477,7]
[423706249,1780319446000,-585.511047,0.0001484,2]
[423706276,1780319446000,-1700000.0,0.00016147,2]
[423706255,1780319446000,-300.0,0.00015416,2]
[423706265,1780319446000,-342.96291606,0.00016146,2]
[423706282,1780319446000,-467.01891298,0.00016177,7]
[423706268,1780319446000,-500.0,0.00016146,2]
[423706288,1780319446000,-500.0,0.00016246,2]
[423706285,1780319446000,-594.5535,0.00016237,2]
[423706286,1780319446000,-333.91830965,0.00016245,2]
[423706290,1780319446000,-1038672.59617334,0.00016247,2]
[423706287,1780319446000,-235.349,0.00016246,2]
[423706283,1780319446000,-225.09608701,0.00016179,2]
[423706284,1780319446000,-152.0,0.00016232,2]
[423706279,1780319446000,-209.01117432,0.00016177,2]
[423706281,1780319446000,-363.81180916,0.00016177,2]
[423706277,1780319446000,-216.10958453,0.00016164,2]
[423706280,1780319446000,-212.6885432,0.00016177,2]
[423706278,1780319446000,-167.93612936,0.00016177,2]
[423706267,1780319446000,-500.0,0.00016146,2]
[423706272,1780319446000,-500.0,0.00016146,2]
[423706270,1780319446000,-500.0,0.00016146,2]
[423706269,1780319446000,-500.0,0.00016146,2]
[423706271,1780319446000,-500.0,0.00016146,2]
[423706275,1780319446000,-256.89612067,0.00016147,2]
[423706273,1780319446000,-622.43310492,0.00016146,2]
[423706274,1780319446000,-3079.0405188,0.00016147,2]
[423706490,1780319448000,-9220.05918824,0.00016247,2]
[423706492,1780319448000,-14785.03572687,0.00016247,2]
[423706495,1780319448000,-31104.48096988,0.00016247,2]
[423706469,1780319448000,-3844.90585889,0.00016247,2]
[423706940,1780319649000,-620.28963005,0.00013308,2]
[423706981,1780320631000,-285.94924944,0.00012999,2]
[423706980,1780320631000,-635.16775901,0.00012999,2]
[423706983,1780320631000,-1246.67731999,0.00012999,2]
[423706982,1780320631000,-2832.20567156,0.00012999,2]
[423706986,1780320631000,-158.52418224,0.00013248,2]
[423706985,1780320631000,-166.66,0.0001313,2]
[423706987,1780320631000,-152.0,0.00013546,2]
[423706991,1780320632000,-1997.55154909,0.00014726,2]
[423706990,1780320632000,-1123.62274636,0.00014726,2]
[423706988,1780320632000,-152.0,0.00013573,2]
[423706989,1780320632000,-169.146021,0.00014428,2]
[423706992,1780320632000,-1704.47482095,0.00014726,2]
[423706993,1780320632000,-424.2275971,0.00014726,2]
[423707057,1780320640000,-1348.02949894,0.00013384,2]
[423707064,1780320640000,-2353.70145846,0.00013384,2]
[423707099,1780320640000,-466.55666222,0.00013384,2]
[423707091,1780320640000,-831.71238038,0.00013384,2]
[423707101,1780320640000,-152.0,0.00013519,2]
[423707111,1780320640000,-300.0,0.000155,2]
[423707113,1780320640000,-300.0,0.000155,2]
[423707117,1780320640000,-4059.50694993,0.00015501,2]
[423707119,1780320640000,-374.72170755,0.00015501,2]
[423707103,1780320640000,-152.0,0.00013519,2]
[423707109,1780320640000,-1200.0,0.000155,2]
[423707107,1780320640000,-1035.59996,0.00015292,2]
[423707105,1780320640000,-989.3507031,0.00014726,2]
[423707121,1780320640000,-14870.82134972,0.00015847,2]
[423707115,1780320640000,-300.0,0.000155,2]
[423707202,1780320641000,-4052.64258996,0.00015847,2]
[423707461,1780320643000,-5894.7289,0.00015847,2]
[423707459,1780320643000,-5741.8086363,0.00015847,2]
[423707628,1780320646000,-3490.03750627,0.00015847,2]
[423707630,1780320646000,-69151.61246276,0.00015847,2]
[423707629,1780320646000,-89009.44524411,0.00015847,2]
[423707631,1780320646000,-448.3963019,0.00015847,2]
[423707632,1780320646000,-5630.33111642,0.00015847,2]
[423707633,1780320646000,-8222.45360548,0.00015847,2]
[423707634,1780320646000,-337.2,0.00015847,2]
[423707636,1780320749000,-825.20220784,0.00015271,2]
[423707637,1780320766000,-151.0,0.00015371,2]
[423707648,1780321392000,5999241.0,0.00021918,120]
[423707698,1780321833000,-512.4596653,0.00015646,2]
[423707697,1780321833000,-500.0,0.00015646,2]
[423707695,1780321833000,-910.94614328,0.00015645,2]
[423707692,1780321833000,-186.26591413,0.0001385,2]
[423707691,1780321833000,-152.0,0.00013611,2]
[423707699,1780321833000,-489.88643083,0.00015646,2]
[423707690,1780321833000,-152.0,0.00013611,2]
[423707687,1780321833000,-5000.0,0.00012721,2]
[423707688,1780321833000,-151.0,0.0001298,2]
[423707693,1780321833000,-166.0,0.00015645,2]
[423707694,1780321833000,-300.0,0.00015645,2]
[423707696,1780321833000,-289.05385672,0.00015645,2]
[423707689,1780321833000,-152.0,0.00013516,2]
[423707707,1780321833000,-229.80908083,0.00015646,2]
[423707710,1780321833000,-500.0,0.00015646,2]
[423707711,1780321833000,-500.0,0.00015646,2]
[423707712,1780321833000,-288.94936057,0.00015646,2]
[423707706,1780321833000,-500.0,0.00015646,2]
[423707709,1780321833000,-500.0,0.00015646,2]
[423707708,1780321833000,-218.82807968,0.00015646,2]
[423707704,1780321833000,-500.0,0.00015646,2]
[423707702,1780321833000,-500.0,0.00015646,2]
[423707700,1780321833000,-10.11356917,0.00015646,2]
[423707701,1780321833000,-500.0,0.00015646,2]
[423707705,1780321833000,-500.0,0.00015646,2]
[423707703,1780321833000,-500.0,0.00015646,2]
[423707719,1780321838000,-500.0,0.00015646,2]
[423707715,1780321838000,-152.0,0.00013522,2]
[423707726,1780321838000,-2771.13646692,0.00015746,2]
[423707718,1780321838000,-500.0,0.00015646,2]
[423707716,1780321838000,-211.05063943,0.00015646,2]
[423707717,1780321838000,-500.0,0.00015646,2]
[423707724,1780321838000,-506.02986646,0.00015745,2]
[423707723,1780321838000,-24734.88502785,0.00015647,2]
[423707720,1780321838000,-500.0,0.00015646,2]
[423707725,1780321838000,-500.0,0.00015745,2]
[423707721,1780321838000,-355.68811858,0.00015646,2]
[423707728,1780321838000,-64350.37800075,0.00015747,2]
[423707727,1780321838000,-301.85940121,0.00015746,2]
[423707722,1780321838000,-180.2117831,0.00015646,2]
[423707756,1780321846000,-77813.63832798,0.00015747,2]
[423707755,1780321846000,-142652.35143193,0.00015747,2]
[423707757,1780321847000,-1957.84982673,0.00015747,2]
[423708211,1780321884000,162.83096046,0.000224,110]
[423708215,1780322004000,162.83096045,0.00022409,110]
[423708223,1780322170000,-337.22754099,0.00013715,2]
[423708224,1780322172000,-300.0,0.00013715,2]
[423708230,1780322633000,-270.21574425,0.00012945,2]
[423708241,1780323006000,260.0,8.202e-05,2]
[423708311,1780323032000,-1680.0,0.00013956,2]
[423708330,1780323032000,-817.55890769,0.00014572,2]
[423708319,1780323032000,-500.0,0.00014569,2]
[423708291,1780323032000,-300.0,0.00013073,2]
[423708342,1780323032000,-500.0,0.000155,2]
[423708338,1780323032000,-905.15458,0.00015487,2]
[423708336,1780323032000,-188.28,0.00015467,2]
[423708328,1780323032000,-215.28413074,0.00014569,2]
[423708325,1780323032000,-500.0,0.00014569,2]
[423708313,1780323032000,-164.417583,0.00013994,2]
[423708295,1780323032000,-305.56383742,0.00013593,2]
[423708289,1780323032000,-300.0,0.00013073,2]
[423708331,1780323032000,-1276.15835748,0.00014572,2]
[423708327,1780323032000,-501.88549493,0.00014569,2]
[423708324,1780323032000,-500.0,0.00014569,2]
[423708339,1780323032000,-1000.0,0.00015488,5]
[423708317,1780323032000,-199.49421885,0.00014382,2]
[423708323,1780323032000,-500.0,0.00014569,2]
[423708326,1780323032000,-500.0,0.00014569,2]
[423708312,1780323032000,-246.98238232,0.0001399,2]
[423708297,1780323032000,-1011.47472466,0.00013593,2]
[423708299,1780323032000,-152.0,0.00013743,2]
[423708285,1780323032000,-2126.4,0.00012435,2]
[423708301,1780323032000,-152.0,0.00013743,2]
[423708315,1780323032000,-500.0,0.00014382,2]
[423708343,1780323032000,-2494.02282021,0.00015545,2]
[423708318,1780323032000,-164.417583,0.00014485,2]
[423708332,1780323032000,-385.52406241,0.00014572,2]
[423708305,1780323032000,-152.0,0.0001377,2]
[423708341,1780323032000,-500.0,0.000155,2]
[423708335,1780323032000,-1920.0,0.00015351,2]
[423708334,1780323032000,-164.417583,0.00014976,2]
[423708322,1780323032000,-500.0,0.00014569,2]
[423708316,1780323032000,-259.63103036,0.00014382,2]
[423708287,1780323032000,-4343.88505566,0.00012561,2]
[423708288,1780323032000,-1200.0,0.00012687,2]
[423708344,1780323032000,-21197.81601616,0.00015546,2]
[423708321,1780323032000,-500.0,0.00014569,2]
[423708293,1780323032000,-279.59446306,0.00013208,2]
[423708303,1780323032000,-2426.6635634,0.00013743,2]
[423708309,1780323032000,-172.29597057,0.00013816,2]
[423708290,1780323032000,-300.0,0.00013073,2]
[423708307,1780323032000,-152.0,0.0001377,2]
[423708314,1780323032000,-1166.4181643,0.00014303,2]
[423708337,1780323032000,-164.417583,0.00015467,2]
[423708329,1780323032000,-459.87688558,0.00014572,2]
[423708286,1780323032000,-2873.6,0.00012435,2]
[423708292,1780323032000,-417.0,0.00013074,2]
[423708320,1780323032000,-485.4673822,0.00014569,2]
[423708333,1780323032000,-905.15458,0.00014861,2]
[423708340,1780323032000,-500.0,0.000155,2]
[423708401,1780323041000,-1718.501097,0.00015546,2]
[423708414,1780323041000,-16490.10801066,0.00015546,2]
[423708410,1780323041000,-337.30774106,0.00015546,2]
[423708412,1780323041000,-1197.10362736,0.00015546,2]
[423708400,1780323041000,-5000.0,0.00015391,2]
[423708408,1780323041000,-981.08142789,0.00015546,2]
[423708706,1780323043000,-3693.28934698,0.00015546,2]
[423708704,1780323043000,-657.5484785,0.00015546,2]
[423708703,1780323043000,-2408.86898391,0.00015546,2]
[423708702,1780323043000,-328.52132253,0.00015546,2]
[423708735,1780323044000,-11021.32172689,0.00015546,2]
[423708728,1780323044000,-2188.19,0.00015546,2]
[423708738,1780323044000,-8784.21114569,0.00015546,2]
[423708737,1780323044000,-37385.82158569,0.00015546,2]
[423708736,1780323044000,-36500.0,0.00015546,2]
[423708763,1780323046000,-7855.68216755,0.00015546,2]
[423708761,1780323046000,-229505.51226739,0.00015546,2]
[423708760,1780323046000,-1693.68170814,0.00015546,2]
[423708758,1780323046000,-7155.0,0.00015546,2]
[423708759,1780323046000,-124385.96336844,0.00015546,2]
[423708792,1780324139000,20000.0,0.00022436,30]
[423708804,1780324232000,-368.98111161,0.00014136,2]
[423708805,1780324232000,-4631.01888839,0.00014136,2]
[423708806,1780324232000,-497.79272181,0.00015391,7]
[423708807,1780324232000,-241.16107025,0.00015391,7]
[423708808,1780324232000,-1000.0,0.00015395,5]
[423708809,1780324232000,-159.37377278,0.00015423,2]
[423708813,1780324232000,-2244.62053818,0.00015465,2]
[423708810,1780324232000,-224.78410556,0.00015434,2]
[423708816,1780324232000,-500.0,0.00015533,2]
[423708812,1780324232000,-300.0,0.00015464,2]
[423708811,1780324232000,-1200.0,0.00015463,2]
[423708814,1780324232000,-500.0,0.00015533,2]
[423708815,1780324232000,-326.51433569,0.00015533,2]
[423708817,1780324232000,-37704.94764358,0.00015534,2]
[423708824,1780324239000,-103473.09056436,0.00015534,2]
[423708825,1780324239000,-578697.29495924,0.00015534,2]
[423708827,1780324239000,-7470.17921266,0.00015534,2]
[423708826,1780324239000,-60342.1498077,0.00015534,2]
[423708829,1780324239000,-23623.95552117,0.00015534,2]
[423708830,1780324239000,-6596.00338006,0.00015534,2]
[423708828,1780324239000,-46973.12310367,0.00015534,2]
[423709016,1780324241000,-5296.7571945,0.00015534,2]
[423709021,1780324241000,-408.87603072,0.00015534,2]
[423709022,1780324241000,-620.73702623,0.00015534,2]
[423709017,1780324241000,-10087.06747415,0.00015534,2]
[423709023,1780324241000,-41304.82000303,0.00015534,2]
[423709020,1780324241000,-5156.29884995,0.00015534,2]
[423709019,1780324241000,-1917.85952668,0.00015534,2]
[423709018,1780324241000,-7636.7518568,0.00015534,2]
[423709024,1780324241000,-1288.95409075,0.00015534,2]
[423709682,1780324246000,-97107.2218318,0.00015534,2]
[423709673,1780324246000,-35749.99999999,0.00015534,2]
[423709658,1780324246000,-5000.0,0.00015379,2]
[423709660,1780324246000,-17329.96805908,0.00015534,2]
[423709742,1780324249000,-40050.00000001,0.00015534,2]
[423709740,1780324249000,-1990.36528009,0.00015534,2]
[423709741,1780324249000,-382.74849313,0.00015534,2]
[423709750,1780324348000,-202.98816336,0.00015279,2]
[423709751,1780324365000,-4695.06982543,0.00015379,2]
[423709757,1780324524000,-5000.0,0.00015071,2]
[423709759,1780324631000,-5000.0,0.00015071,2]
[423709761,1780324711000,-5000.0,0.00015071,2]
[423709762,1780324729000,-5000.0,0.00015071,2]
[423709763,1780324750000,-5000.0,0.00015071,2]
[423709764,1780324778000,-5000.0,0.00015071,2]
[423709765,1780324798000,-5000.0,0.00015071,2]
[423709767,1780324845000,-5000.0,0.00015071,2]
[423709768,1780324864000,-5000.0,0.00015071,2]
[423709770,1780324882000,-5000.0,0.00015071,2]
[423709773,1780324962000,-1217.7452,0.00015071,2]
[423709810,1780325433000,-628.39422484,0.00015319,2]
[423709808,1780325433000,-664.52158418,0.00015,2]
[423709809,1780325433000,-155.47841582,0.00015,2]
[423709811,1780325433000,-411.12473751,0.00015319,2]
[423710831,1780325447000,-152.0,0.00015453,2]
[423710820,1780325447000,-3960.48103765,0.00015319,2]
[423710818,1780325447000,-5000.0,0.00015166,2]
[423710833,1780325447000,-152.0,0.00015474,2]
[423710837,1780325447000,-0.01780252,0.00015519,2]
[423710822,1780325447000,-152.0,0.00015391,7]
[423710830,1780325447000,-196.6860924,0.00015433,2]
[423710826,1780325447000,-152.0,0.00015399,7]
[423710824,1780325447000,-152.0,0.00015391,7]
[423710835,1780325447000,-991.0,0.00015518,2]
[423710828,1780325447000,-152.0,0.00015422,2]
[423710856,1780325447000,-2020.14068186,0.00015519,2]
[423710865,1780325447000,-145.43242214,0.00015531,2]
[423710859,1780325447000,-500.0,0.00015531,2]
[423710951,1780325447000,-500.0,0.00015531,2]
[423710949,1780325447000,-500.0,0.00015531,2]
[423710857,1780325447000,-300.0,0.00015529,2]
[423710953,1780325447000,-500.0,0.00015531,2]
[423710944,1780325447000,-500.0,0.00015531,2]
[423710946,1780325447000,-485.4673822,0.00015531,2]
[423710938,1780325447000,-2426.6635634,0.00015531,2]
[423710942,1780325447000,-500.0,0.00015531,2]
[423710863,1780325447000,-379.33809075,0.00015531,2]
[423710861,1780325447000,-500.0,0.00015531,2]
[423710940,1780325447000,-209.69958237,0.00015531,2]
[423710958,1780325448000,-501.88549493,0.00015531,2]
[423710956,1780325448000,-500.0,0.00015531,2]
[423710960,1780325448000,-500.0,0.00015531,2]
[423710964,1780325448000,-48321.6870292,0.00015532,2]
[423710962,1780325448000,-493.75571767,0.00015531,2]
[423710968,1780325448000,-500.0,0.00015533,2]
[423710966,1780325448000,-500.0,0.00015533,2]
[423710977,1780325448000,-260057.17443358,0.00015599,2]
[423711029,1780325448000,-0.02023002,0.00015599,2]
[423711014,1780325448000,-14300.0,0.00015599,2]
[423710971,1780325448000,-500.0,0.00015533,2]
[423710969,1780325448000,-500.0,0.00015533,2]
[423710973,1780325448000,-366.75344365,0.00015533,2]
[423710975,1780325448000,-373.94343409,0.00015547,2]
[423711566,1780325664000,-166.25524887,0.00014737,2]
[423711569,1780325694000,-280.963132,0.0001459,2]
[423711575,1780325964000,-310.92239415,0.00013326,2]
[423711576,1780325968000,-254.35852046,0.00013326,2]
[423711577,1780325970000,-154.51335139,0.00013326,2]
[423711581,1780326024000,-121.93635754,0.00013461,2]
[423711580,1780326024000,-154.47657397,0.00013326,2]
[423711583,1780326032000,-637.31450914,0.00013326,2]
[423711585,1780326044000,-161.935884,0.00013193,2]
[423711586,1780326066000,-176.65683306,0.00013193,2]
[423711587,1780326067000,-164.24994259,0.00013193,2]
[423711588,1780326072000,-161.935884,0.00013061,2]
[423711591,1780326130000,-4707.2390746,0.00013061,2]
[423711593,1780326354000,-372.05544478,0.00012801,2]
[423711594,1780326360000,-361.74551222,0.00012801,2]
[423711595,1780326362000,-173.994366,0.00012801,2]
[423711596,1780326365000,-278.19749075,0.00012801,2]
[423711597,1780326367000,-161.3615359,0.00012801,2]
[423711603,1780326383000,-151.0,0.00012801,2]
[423711612,1780326393000,-373.19475581,0.00012801,2]
[423711614,1780326428000,-278.80805309,0.00012546,2]
[423711621,1780326624000,-300.0,0.00012297,2]
[423711622,1780326626000,-337.22754099,0.00012297,2]
[423711664,1780326631000,-422.32746184,0.00012297,2]
[423711668,1780326631000,-5000.0,0.00012421,2]
[423711666,1780326631000,-2108.08592362,0.00012297,2]
[423711667,1780326631000,-1177.74530206,0.00012297,2]
[423711669,1780326632000,-965.32777075,0.00012672,2]
[423711783,1780326638000,-5000.0,0.00012174,2]
[423711793,1780326638000,-300.0,0.00012927,2]
[423711787,1780326638000,-300.0,0.00012927,2]
[423711791,1780326638000,-300.0,0.00012927,2]
[423711785,1780326638000,-234.67222925,0.00012672,2]
[423711795,1780326638000,-214.4465653,0.00012928,2]
[423711797,1780326638000,-202.5534347,0.00012928,2]
[423711789,1780326638000,-300.0,0.00012927,2]
[423711801,1780326638000,-160.34293761,0.00013546,2]
[423711799,1780326638000,-164.417583,0.00013091,2]
[423711803,1780326639000,-164.417583,0.0001355,2]
[423711805,1780326639000,-300.0,0.00013592,2]
[423711807,1780326639000,-300.0,0.00013592,2]
[423711813,1780326639000,-300.0,0.00013592,2]
[423711811,1780326639000,-300.0,0.00013592,2]
[423711815,1780326639000,-299.44541066,0.00013592,2]
[423711809,1780326639000,-300.0,0.00013592,2]
[423712207,1780326642000,-500.0,0.00014221,2]
[423712213,1780326642000,-500.0,0.00014221,2]
[423712225,1780326642000,-500.0,0.00014318,2]
[423712201,1780326642000,-500.0,0.00014221,2]
[423712203,1780326642000,-500.0,0.00014221,2]
[423712216,1780326642000,-500.0,0.00014221,2]
[423712218,1780326642000,-500.0,0.00014221,2]
[423712211,1780326642000,-633.71,0.00014221,2]
[423712220,1780326642000,-500.0,0.00014318,2]
[423712221,1780326642000,-500.0,0.00014318,2]
[423712223,1780326642000,-530.78,0.00014318,2]
[423712198,1780326642000,-500.0,0.0001422,2]
[423712236,1780326642000,-191.34,0.00014592,2]